[Event "Titled Tuesday Blitz March 08 Early 2022"]
[White "Kozak, Antoni"]
[Black "Sychev, Klementy"]
[WhiteFideId "21832030"]
[BlackFideId "4114060"]
[WhiteElo "2236"]
[BlackElo "2564"]
[Result "1-0"]
[Round "09"]
[TimeControl "180+1"]
[Date "2022.03.08"]
[WhiteClock "0:00:07"]
[BlackClock "0:00:01"]

1. Nf3 {[%clk 0:02:59]}  g5 {[%clk 0:02:58]} 2. Nxg5 {[%clk 0:02:58]}  e5 {[%clk 0:02:59]} 3. Nf3 {[%clk 0:02:53]}  e4 {[%clk 0:02:59]} 4. Nd4 {[%clk 0:02:53]}  c5 {[%clk 0:02:59]} 5. Nb3 {[%clk 0:02:53]}  d5 {[%clk 0:02:50]} 6. d3 {[%clk 0:02:54]}  exd3 {[%clk 0:02:42]} 7. exd3 {[%clk 0:02:47]}  Nc6 {[%clk 0:02:42]} 8. Be2 {[%clk 0:02:40]}  Nf6 {[%clk 0:02:40]} 9. N1d2 {[%clk 0:02:34]}  Rg8 {[%clk 0:02:39]} 10. g3 {[%clk 0:02:32]}  Bh3 {[%clk 0:02:38]} 11. Nf3 {[%clk 0:02:32]}  a5 {[%clk 0:01:50]} 12. a4 {[%clk 0:02:24]}  Be7 {[%clk 0:01:01]} 13. Ng5 {[%clk 0:02:22]}  Bf5 {[%clk 0:00:54]} 14. O-O {[%clk 0:02:20]}  Qc7 {[%clk 0:00:47]} 15. Bf4 {[%clk 0:02:19]}  Bd6 {[%clk 0:00:47]} 16. Bxd6 {[%clk 0:02:15]}  Qxd6 {[%clk 0:00:47]} 17. Qd2 {[%clk 0:02:11]}  Rg7 {[%clk 0:00:25]} 18. Rfe1 {[%clk 0:02:05]}  O-O-O {[%clk 0:00:24]} 19. Nf3 {[%clk 0:02:00]}  Rdg8 {[%clk 0:00:22]} 20. Kh1 {[%clk 0:01:54]}  Bh3 {[%clk 0:00:16]} 21. Ng1 {[%clk 0:01:53]}  Be6 {[%clk 0:00:14]} 22. Bf3 {[%clk 0:01:48]}  h5 {[%clk 0:00:13]} 23. d4 {[%clk 0:01:43]}  c4 {[%clk 0:00:13]} 24. Nxa5 {[%clk 0:01:41]}  Ne4 {[%clk 0:00:11]} 25. Bxe4 {[%clk 0:01:37]}  dxe4 {[%clk 0:00:12]} 26. Nxc6 {[%clk 0:01:36]}  Qxc6 {[%clk 0:00:13]} 27. Qe3 {[%clk 0:01:23]}  h4 {[%clk 0:00:13]} 28. Ne2 {[%clk 0:01:17]}  hxg3 {[%clk 0:00:13]} 29. fxg3 {[%clk 0:01:17]}  Bg4 {[%clk 0:00:13]} 30. d5 {[%clk 0:01:01]}  Qxd5 {[%clk 0:00:10]} 31. Nd4 {[%clk 0:01:01]}  Bd7 {[%clk 0:00:05]} 32. Qxe4 {[%clk 0:00:48]}  Qh5 {[%clk 0:00:05]} 33. Qe5 {[%clk 0:00:29]}  Rg5 {[%clk 0:00:04]} 34. Qe2 {[%clk 0:00:26]}  Bg4 {[%clk 0:00:03]} 35. Qxc4+ {[%clk 0:00:24]}  Kb8 {[%clk 0:00:03]} 36. Re3 {[%clk 0:00:14]}  Bd7 {[%clk 0:00:01]} 37. Rae1 {[%clk 0:00:10]}  Rxg3 {[%clk 0:00:01]} 38. Rxg3 {[%clk 0:00:11]}  Rxg3 {[%clk 0:00:01]} 39. Qe2 {[%clk 0:00:07]} 1-0


[Site "https://www.chess.com"]

[Event "Titled Tuesday Blitz March 08 Early 2022"]
[White "Levin, Anthony"]
[Black "Grafil, Franz Robert"]
[WhiteFideId "30940680"]
[BlackFideId "5205298"]
[WhiteElo "1874"]
[BlackElo "2211"]
[Result "0-1"]
[Round "09"]
[TimeControl "180+1"]
[Date "2022.03.09"]
[WhiteClock "0:00:01"]
[BlackClock "0:00:18"]

1. Nf3 {[%clk 0:02:47]}  Nf6 {[%clk 0:02:54]} 2. g3 {[%clk 0:02:46]}  b6 {[%clk 0:02:54]} 3. Bg2 {[%clk 0:02:46]}  Bb7 {[%clk 0:02:54]} 4. d4 {[%clk 0:02:43]}  e6 {[%clk 0:02:52]} 5. O-O {[%clk 0:02:40]}  c5 {[%clk 0:02:51]} 6. e3 {[%clk 0:02:30]}  Be7 {[%clk 0:02:48]} 7. b3 {[%clk 0:02:30]}  O-O {[%clk 0:02:43]} 8. Bb2 {[%clk 0:02:30]}  a5 {[%clk 0:02:44]} 9. c4 {[%clk 0:02:25]}  a4 {[%clk 0:02:34]} 10. bxa4 {[%clk 0:02:19]}  d6 {[%clk 0:02:18]} 11. Nc3 {[%clk 0:02:18]}  Nc6 {[%clk 0:02:17]} 12. Nb5 {[%clk 0:02:04]}  Na5 {[%clk 0:02:14]} 13. Rc1 {[%clk 0:01:50]}  Qd7 {[%clk 0:02:12]} 14. Qe2 {[%clk 0:01:39]}  Rfc8 {[%clk 0:02:09]} 15. Rfd1 {[%clk 0:01:39]}  Be4 {[%clk 0:01:45]} 16. dxc5 {[%clk 0:01:15]}  bxc5 {[%clk 0:01:25]} 17. Bxf6 {[%clk 0:00:27]}  gxf6 {[%clk 0:01:24]} 18. Ne5 {[%clk 0:00:07]}  fxe5 {[%clk 0:01:25]} 19. Bxe4 {[%clk 0:00:07]}  Nc6 {[%clk 0:01:11]} 20. Qh5 {[%clk 0:00:06]}  f5 {[%clk 0:01:10]} 21. Bg2 {[%clk 0:00:03]}  Rxa4 {[%clk 0:01:09]} 22. g4 {[%clk 0:00:04]}  e4 {[%clk 0:00:48]} 23. gxf5 {[%clk 0:00:03]}  exf5 {[%clk 0:00:49]} 24. Kh1 {[%clk 0:00:03]}  Kh8 {[%clk 0:00:34]} 25. Bh3 {[%clk 0:00:03]}  Rf8 {[%clk 0:00:33]} 26. Rd5 {[%clk 0:00:03]}  Ne5 {[%clk 0:00:33]} 27. Rg1 {[%clk 0:00:02]}  Rxa2 {[%clk 0:00:27]} 28. Rgd1 {[%clk 0:00:02]}  Qe6 {[%clk 0:00:21]} 29. Nxd6 {[%clk 0:00:01]}  Rxf2 {[%clk 0:00:18]} 0-1


[Site "https://www.chess.com"]

[Event "Titled Tuesday Blitz March 08 Early 2022"]
[White "Levine, David"]
[Black "Iskusnyh, Sergei"]
[WhiteFideId "2011611"]
[BlackFideId "4120027"]
[WhiteElo "2180"]
[BlackElo "2492"]
[Result "0-1"]
[Round "09"]
[TimeControl "180+1"]
[Date "2022.03.09"]
[WhiteClock "0:00:01"]
[BlackClock "0:00:15"]

1. d4 {[%clk 0:03:00]}  d5 {[%clk 0:02:58]} 2. c4 {[%clk 0:03:00]}  c6 {[%clk 0:02:57]} 3. Nf3 {[%clk 0:02:59]}  Nf6 {[%clk 0:02:57]} 4. Qc2 {[%clk 0:02:59]}  dxc4 {[%clk 0:02:55]} 5. Qxc4 {[%clk 0:02:59]}  Bf5 {[%clk 0:02:54]} 6. Nc3 {[%clk 0:02:54]}  e6 {[%clk 0:02:52]} 7. Bg5 {[%clk 0:02:49]}  Nbd7 {[%clk 0:02:51]} 8. e3 {[%clk 0:02:48]}  Be7 {[%clk 0:02:50]} 9. Qb3 {[%clk 0:02:42]}  Qb6 {[%clk 0:02:46]} 10. Be2 {[%clk 0:02:33]}  h6 {[%clk 0:02:41]} 11. Bh4 {[%clk 0:02:31]}  O-O {[%clk 0:02:36]} 12. O-O {[%clk 0:02:30]}  Qxb3 {[%clk 0:02:21]} 13. axb3 {[%clk 0:02:30]}  Bb4 {[%clk 0:02:21]} 14. h3 {[%clk 0:02:21]}  Nd5 {[%clk 0:02:20]} 15. Rfc1 {[%clk 0:02:18]}  Bg6 {[%clk 0:02:16]} 16. Ra4 {[%clk 0:02:05]}  a5 {[%clk 0:01:56]} 17. Bg3 {[%clk 0:01:56]}  Rfe8 {[%clk 0:01:41]} 18. Kf1 {[%clk 0:01:35]}  f6 {[%clk 0:01:19]} 19. Raa1 {[%clk 0:01:07]}  Rad8 {[%clk 0:00:58]} 20. Na2 {[%clk 0:00:53]}  Bf8 {[%clk 0:00:56]} 21. Nc3 {[%clk 0:00:53]}  Ra8 {[%clk 0:00:54]} 22. Bc4 {[%clk 0:00:46]}  Nb4 {[%clk 0:00:49]} 23. Ke2 {[%clk 0:00:45]}  b5 {[%clk 0:00:47]} 24. Nxb5 {[%clk 0:00:41]}  cxb5 {[%clk 0:00:44]} 25. Bxb5 {[%clk 0:00:42]}  Re7 {[%clk 0:00:35]} 26. Bd6 {[%clk 0:00:38]}  Rf7 {[%clk 0:00:34]} 27. Bxb4 {[%clk 0:00:38]}  Rb8 {[%clk 0:00:30]} 28. Bxf8 {[%clk 0:00:32]}  Rxb5 {[%clk 0:00:29]} 29. Bd6 {[%clk 0:00:29]}  Rxb3 {[%clk 0:00:28]} 30. Rxa5 {[%clk 0:00:26]}  Rxb2+ {[%clk 0:00:27]} 31. Ke1 {[%clk 0:00:26]}  Nb6 {[%clk 0:00:27]} 32. Bc5 {[%clk 0:00:21]}  Nd5 {[%clk 0:00:25]} 33. Ra8+ {[%clk 0:00:20]}  Kh7 {[%clk 0:00:25]} 34. Ra7 {[%clk 0:00:20]}  Rxa7 {[%clk 0:00:22]} 35. Bxa7 {[%clk 0:00:20]}  Nb4 {[%clk 0:00:23]} 36. Kf1 {[%clk 0:00:19]}  Nd3 {[%clk 0:00:22]} 37. Rd1 {[%clk 0:00:16]}  Nxf2 {[%clk 0:00:21]} 38. Rd2 {[%clk 0:00:10]}  Rb7 {[%clk 0:00:21]} 39. Kxf2 {[%clk 0:00:09]}  Rxa7 {[%clk 0:00:21]} 40. g4 {[%clk 0:00:06]}  Be4 {[%clk 0:00:21]} 41. Ne1 {[%clk 0:00:05]}  g5 {[%clk 0:00:20]} 42. Nd3 {[%clk 0:00:04]}  Bxd3 {[%clk 0:00:18]} 43. Rxd3 {[%clk 0:00:04]}  Ra2+ {[%clk 0:00:18]} 44. Kg3 {[%clk 0:00:02]}  Kg6 {[%clk 0:00:17]} 45. e4 {[%clk 0:00:02]}  Ra4 {[%clk 0:00:17]} 46. Kf3 {[%clk 0:00:01]}  Kf7 {[%clk 0:00:16]} 47. d5 {[%clk 0:00:01]}  Ke7 {[%clk 0:00:15]} 0-1


[Site "https://www.chess.com"]

[Event "Titled Tuesday Blitz March 08 Early 2022"]
[White "Liyanage, Ranindu Dilshan"]
[Black "Vogel, Roven"]
[WhiteFideId "9915834"]
[BlackFideId "12908088"]
[WhiteElo "1858"]
[BlackElo "2516"]
[Result "0-1"]
[Round "09"]
[TimeControl "180+1"]
[Date "2022.03.09"]
[WhiteClock "0:00:56"]
[BlackClock "0:02:01"]

1. e4 {[%clk 0:03:00]}  e5 {[%clk 0:02:58]} 2. Nf3 {[%clk 0:03:00]}  Nc6 {[%clk 0:02:54]} 3. Bc4 {[%clk 0:03:00]}  Nf6 {[%clk 0:02:53]} 4. d3 {[%clk 0:03:00]}  Bc5 {[%clk 0:02:53]} 5. c3 {[%clk 0:03:00]}  O-O {[%clk 0:02:52]} 6. O-O {[%clk 0:03:00]}  d6 {[%clk 0:02:50]} 7. h3 {[%clk 0:02:55]}  h6 {[%clk 0:02:49]} 8. Re1 {[%clk 0:02:54]}  a5 {[%clk 0:02:47]} 9. d4 {[%clk 0:02:54]}  Ba7 {[%clk 0:02:45]} 10. Be3 {[%clk 0:02:43]}  exd4 {[%clk 0:02:39]} 11. cxd4 {[%clk 0:02:29]}  d5 {[%clk 0:02:27]} 12. exd5 {[%clk 0:02:23]}  Nxd5 {[%clk 0:02:28]} 13. Nc3 {[%clk 0:01:58]}  Be6 {[%clk 0:02:26]} 14. Qc1 {[%clk 0:01:42]}  Nxe3 {[%clk 0:02:15]} 15. Bxe6 {[%clk 0:01:34]}  Nxg2 {[%clk 0:02:15]} 16. Bd5 {[%clk 0:01:07]}  Nxe1 {[%clk 0:02:13]} 17. Qxe1 {[%clk 0:01:03]}  Nxd4 {[%clk 0:02:13]} 18. Bxb7 {[%clk 0:00:59]}  Rb8 {[%clk 0:02:11]} 19. Be4 {[%clk 0:00:57]}  Nxf3+ {[%clk 0:02:08]} 20. Bxf3 {[%clk 0:00:57]}  Rxb2 {[%clk 0:02:09]} 21. Ne4 {[%clk 0:00:58]}  f5 {[%clk 0:02:06]} 22. Rd1 {[%clk 0:00:56]}  Qh4 {[%clk 0:02:01]} 0-1


[Site "https://www.chess.com"]

[Event "Titled Tuesday Blitz March 08 Early 2022"]
[White "Lou, Yiping"]
[Black "Martinez Alcantara, Jose Eduardo"]
[WhiteFideId "8603928"]
[BlackFideId "3805662"]
[WhiteElo "2412"]
[BlackElo "2690"]
[Result "0-1"]
[Round "09"]
[TimeControl "180+1"]
[Date "2022.03.08"]
[WhiteClock "0:00:01"]
[BlackClock "0:01:58"]

1. c4 {[%clk 0:01:22]}  c5 {[%clk 0:02:54]} 2. Nc3 {[%clk 0:01:21]}  Nc6 {[%clk 0:02:55]} 3. g3 {[%clk 0:01:21]}  g6 {[%clk 0:02:55]} 4. Bg2 {[%clk 0:01:21]}  Bg7 {[%clk 0:02:56]} 5. Nf3 {[%clk 0:01:21]}  d6 {[%clk 0:02:57]} 6. O-O {[%clk 0:01:18]}  e6 {[%clk 0:02:58]} 7. d3 {[%clk 0:01:11]}  Nge7 {[%clk 0:02:58]} 8. Bg5 {[%clk 0:01:11]}  h6 {[%clk 0:02:58]} 9. Bd2 {[%clk 0:01:11]}  O-O {[%clk 0:02:58]} 10. Qc1 {[%clk 0:01:11]}  Kh7 {[%clk 0:02:58]} 11. a3 {[%clk 0:01:10]}  b6 {[%clk 0:02:55]} 12. Rb1 {[%clk 0:01:10]}  Bb7 {[%clk 0:02:55]} 13. b4 {[%clk 0:01:09]}  Rb8 {[%clk 0:02:48]} 14. b5 {[%clk 0:01:05]}  Nd4 {[%clk 0:02:46]} 15. Nxd4 {[%clk 0:01:03]}  cxd4 {[%clk 0:02:46]} 16. Nd1 {[%clk 0:00:51]}  Bxg2 {[%clk 0:02:43]} 17. Kxg2 {[%clk 0:00:52]}  Qd7 {[%clk 0:02:41]} 18. a4 {[%clk 0:00:50]}  Rfc8 {[%clk 0:02:29]} 19. Qa3 {[%clk 0:00:38]}  d5 {[%clk 0:02:29]} 20. Nb2 {[%clk 0:00:31]}  Nf5 {[%clk 0:02:14]} 21. Rbc1 {[%clk 0:00:27]}  h5 {[%clk 0:02:14]} 22. Qb3 {[%clk 0:00:23]}  Bf8 {[%clk 0:02:08]} 23. cxd5 {[%clk 0:00:22]}  exd5 {[%clk 0:02:09]} 24. Rxc8 {[%clk 0:00:21]}  Rxc8 {[%clk 0:02:10]} 25. Rc1 {[%clk 0:00:21]}  Re8 {[%clk 0:02:11]} 26. Kf1 {[%clk 0:00:12]}  Bh6 {[%clk 0:02:09]} 27. Bxh6 {[%clk 0:00:11]}  Nxh6 {[%clk 0:02:10]} 28. Qc2 {[%clk 0:00:09]}  Qh3+ {[%clk 0:02:10]} 29. Ke1 {[%clk 0:00:07]}  Qxh2 {[%clk 0:02:10]} 30. Qc7 {[%clk 0:00:04]}  Qg1+ {[%clk 0:02:07]} 31. Kd2 {[%clk 0:00:04]}  Qxf2 {[%clk 0:02:08]} 32. Re1 {[%clk 0:00:04]}  Qe3+ {[%clk 0:01:57]} 33. Kc2 {[%clk 0:00:04]}  Qe7 {[%clk 0:01:58]} 34. Qxe7 {[%clk 0:00:02]}  Rxe7 {[%clk 0:01:59]} 35. Kd2 {[%clk 0:00:02]}  Nf5 {[%clk 0:01:59]} 36. Rg1 {[%clk 0:00:02]}  Ne3 {[%clk 0:01:59]} 37. a5 {[%clk 0:00:01]}  Rc7 {[%clk 0:01:58]} 0-1


[Site "https://www.chess.com"]

[Event "Titled Tuesday Blitz March 08 Early 2022"]
[White "Matlakov, Maxim"]
[Black "Aitbayev, Aslan"]
[WhiteFideId "4168003"]
[BlackFideId "13704613"]
[WhiteElo "2669"]
[BlackElo "2385"]
[Result "1-0"]
[Round "09"]
[TimeControl "180+1"]
[Date "2022.03.08"]
[WhiteClock "0:01:07"]
[BlackClock "0:00:19"]

1. d4 {[%clk 0:03:00]}  Nf6 {[%clk 0:02:53]} 2. Nf3 {[%clk 0:03:00]}  g6 {[%clk 0:02:53]} 3. g3 {[%clk 0:02:58]}  Bg7 {[%clk 0:02:53]} 4. Bg2 {[%clk 0:02:59]}  O-O {[%clk 0:02:53]} 5. O-O {[%clk 0:02:59]}  d6 {[%clk 0:02:51]} 6. Re1 {[%clk 0:02:57]}  Nc6 {[%clk 0:02:38]} 7. d5 {[%clk 0:02:57]}  Ne5 {[%clk 0:02:37]} 8. Nxe5 {[%clk 0:02:55]}  dxe5 {[%clk 0:02:37]} 9. c4 {[%clk 0:02:53]}  e6 {[%clk 0:02:24]} 10. Nc3 {[%clk 0:02:53]}  exd5 {[%clk 0:02:20]} 11. cxd5 {[%clk 0:02:53]}  Ne8 {[%clk 0:02:11]} 12. e4 {[%clk 0:02:44]}  Nd6 {[%clk 0:02:10]} 13. Qb3 {[%clk 0:02:43]}  Kh8 {[%clk 0:02:02]} 14. Be3 {[%clk 0:02:32]}  a6 {[%clk 0:01:57]} 15. Rac1 {[%clk 0:02:26]}  b5 {[%clk 0:01:47]} 16. Qc2 {[%clk 0:02:21]}  Bd7 {[%clk 0:01:45]} 17. Bc5 {[%clk 0:02:15]}  f5 {[%clk 0:01:34]} 18. f3 {[%clk 0:02:03]}  Qf6 {[%clk 0:01:30]} 19. Qe2 {[%clk 0:01:51]}  h5 {[%clk 0:01:27]} 20. Nb1 {[%clk 0:01:33]}  h4 {[%clk 0:01:03]} 21. Nd2 {[%clk 0:01:32]}  Bh6 {[%clk 0:00:58]} 22. Be3 {[%clk 0:01:29]}  f4 {[%clk 0:00:51]} 23. gxf4 {[%clk 0:01:28]}  Bxf4 {[%clk 0:00:50]} 24. Rxc7 {[%clk 0:01:24]}  Rad8 {[%clk 0:00:44]} 25. Bxf4 {[%clk 0:01:18]}  Qxf4 {[%clk 0:00:41]} 26. Qe3 {[%clk 0:01:18]}  g5 {[%clk 0:00:34]} 27. Qxf4 {[%clk 0:01:17]}  gxf4 {[%clk 0:00:35]} 28. Kf2 {[%clk 0:01:16]}  Rg8 {[%clk 0:00:35]} 29. Rg1 {[%clk 0:01:10]}  Rg7 {[%clk 0:00:31]} 30. Bf1 {[%clk 0:01:10]}  Rxg1 {[%clk 0:00:22]} 31. Kxg1 {[%clk 0:01:11]}  Kg8 {[%clk 0:00:20]} 32. Nb3 {[%clk 0:01:10]}  Be8 {[%clk 0:00:19]} 33. Nc5 {[%clk 0:01:09]}  Bh5 {[%clk 0:00:18]} 34. Kf2 {[%clk 0:01:09]}  Rc8 {[%clk 0:00:17]} 35. Rxc8+ {[%clk 0:01:09]}  Nxc8 {[%clk 0:00:18]} 36. Nd7 {[%clk 0:01:07]}  Nd6 {[%clk 0:00:19]} 37. Nxe5 {[%clk 0:01:07]} 1-0


[Site "https://www.chess.com"]

[Event "Titled Tuesday Blitz March 08 Early 2022"]
[White "Matveeva, Olga"]
[Black "Thomas, Anysia"]
[WhiteFideId "24107018"]
[BlackFideId "670472"]
[WhiteElo "2083"]
[BlackElo "2002"]
[Result "0-1"]
[Round "09"]
[TimeControl "180+1"]
[Date "2022.03.09"]
[WhiteClock "0:00:03"]
[BlackClock "0:00:07"]

1. d4 {[%clk 0:03:00]}  Nf6 {[%clk 0:02:20]} 2. c4 {[%clk 0:02:58]}  g6 {[%clk 0:02:18]} 3. g3 {[%clk 0:02:56]}  d5 {[%clk 0:02:18]} 4. cxd5 {[%clk 0:02:55]}  Nxd5 {[%clk 0:02:19]} 5. Nf3 {[%clk 0:02:51]}  Bg7 {[%clk 0:02:19]} 6. Bg2 {[%clk 0:02:50]}  Nb6 {[%clk 0:02:18]} 7. Nc3 {[%clk 0:02:49]}  Nc6 {[%clk 0:02:18]} 8. e3 {[%clk 0:02:47]}  e5 {[%clk 0:02:14]} 9. d5 {[%clk 0:02:45]}  Ne7 {[%clk 0:02:11]} 10. e4 {[%clk 0:02:42]}  Bg4 {[%clk 0:02:10]} 11. O-O {[%clk 0:02:40]}  c6 {[%clk 0:02:08]} 12. h3 {[%clk 0:02:34]}  Bxf3 {[%clk 0:02:07]} 13. Qxf3 {[%clk 0:02:26]}  cxd5 {[%clk 0:02:07]} 14. exd5 {[%clk 0:02:25]}  Nf5 {[%clk 0:02:08]} 15. Rd1 {[%clk 0:02:16]}  O-O {[%clk 0:02:06]} 16. a4 {[%clk 0:02:11]}  Nd4 {[%clk 0:02:02]} 17. Qd3 {[%clk 0:02:06]}  Rc8 {[%clk 0:01:41]} 18. Be3 {[%clk 0:02:02]}  Nc4 {[%clk 0:01:34]} 19. Rab1 {[%clk 0:01:39]}  Na3 {[%clk 0:00:55]} 20. Rbc1 {[%clk 0:01:22]}  Nc4 {[%clk 0:00:55]} 21. Qb1 {[%clk 0:01:02]}  Nxe3 {[%clk 0:00:52]} 22. fxe3 {[%clk 0:01:00]}  Nf5 {[%clk 0:00:37]} 23. Kf2 {[%clk 0:00:34]}  Qg5 {[%clk 0:00:35]} 24. Qe4 {[%clk 0:00:28]}  Qxg3+ {[%clk 0:00:33]} 25. Kg1 {[%clk 0:00:25]}  Qxe3+ {[%clk 0:00:29]} 26. Qxe3 {[%clk 0:00:24]}  Nxe3 {[%clk 0:00:30]} 27. Rd2 {[%clk 0:00:23]}  Bh6 {[%clk 0:00:25]} 28. Re1 {[%clk 0:00:19]}  Nc4 {[%clk 0:00:22]} 29. Rde2 {[%clk 0:00:18]}  Nxb2 {[%clk 0:00:20]} 30. Rxb2 {[%clk 0:00:17]}  Rxc3 {[%clk 0:00:19]} 31. Rxb7 {[%clk 0:00:17]}  Be3+ {[%clk 0:00:19]} 32. Kh2 {[%clk 0:00:16]}  Bb6 {[%clk 0:00:17]} 33. d6 {[%clk 0:00:16]}  Rd3 {[%clk 0:00:17]} 34. d7 {[%clk 0:00:15]}  Rd8 {[%clk 0:00:17]} 35. Rxe5 {[%clk 0:00:14]}  R3xd7 {[%clk 0:00:16]} 36. Rxd7 {[%clk 0:00:13]}  Rxd7 {[%clk 0:00:17]} 37. Re8+ {[%clk 0:00:13]}  Kg7 {[%clk 0:00:17]} 38. Kg3 {[%clk 0:00:13]}  Rd3+ {[%clk 0:00:16]} 39. Kg4 {[%clk 0:00:13]}  h5+ {[%clk 0:00:15]} 40. Kf4 {[%clk 0:00:13]}  Bc7+ {[%clk 0:00:14]} 41. Ke4 {[%clk 0:00:13]}  Rd1 {[%clk 0:00:14]} 42. Kf3 {[%clk 0:00:12]}  Rd3+ {[%clk 0:00:12]} 43. Ke2 {[%clk 0:00:12]}  Ra3 {[%clk 0:00:11]} 44. Bc6 {[%clk 0:00:12]}  Rxh3 {[%clk 0:00:11]} 45. Re7 {[%clk 0:00:11]}  Bb6 {[%clk 0:00:10]} 46. Bd5 {[%clk 0:00:11]}  Rh2+ {[%clk 0:00:10]} 47. Kd3 {[%clk 0:00:10]}  Rf2 {[%clk 0:00:10]} 48. a5 {[%clk 0:00:09]}  Bxa5 {[%clk 0:00:10]} 49. Rxa7 {[%clk 0:00:10]}  Bb6 {[%clk 0:00:10]} 50. Rb7 {[%clk 0:00:09]}  Rf6 {[%clk 0:00:10]} 51. Ke4 {[%clk 0:00:09]}  Bg1 {[%clk 0:00:10]} 52. Kd3 {[%clk 0:00:08]}  h4 {[%clk 0:00:10]} 53. Ke2 {[%clk 0:00:08]}  h3 {[%clk 0:00:10]} 54. Rb3 {[%clk 0:00:08]}  h2 {[%clk 0:00:10]} 55. Rh3 {[%clk 0:00:08]}  g5 {[%clk 0:00:10]} 56. Bf3 {[%clk 0:00:07]}  Re6+ {[%clk 0:00:08]} 57. Kf1 {[%clk 0:00:07]}  f5 {[%clk 0:00:08]} 58. Rh5 {[%clk 0:00:06]}  Kf6 {[%clk 0:00:08]} 59. Bd5 {[%clk 0:00:06]}  Rb6 {[%clk 0:00:06]} 60. Rh6+ {[%clk 0:00:06]}  Ke5 {[%clk 0:00:06]} 61. Rh8 {[%clk 0:00:03]}  Kxd5 {[%clk 0:00:05]} 62. Kg2 {[%clk 0:00:04]}  Ke4 {[%clk 0:00:05]} 63. Kh1 {[%clk 0:00:04]}  Rb3 {[%clk 0:00:05]} 64. Re8+ {[%clk 0:00:03]}  Kf4 {[%clk 0:00:06]} 65. Rf8 {[%clk 0:00:03]}  Rb1 {[%clk 0:00:06]} 66. Kg2 {[%clk 0:00:02]}  h1=Q+ {[%clk 0:00:04]} 67. Kxh1 {[%clk 0:00:02]}  Bc5+ {[%clk 0:00:05]} 68. Kg2 {[%clk 0:00:02]}  Bxf8 {[%clk 0:00:06]} 69. Kh3 {[%clk 0:00:02]}  Bd6 {[%clk 0:00:07]} 70. Kg2 {[%clk 0:00:03]}  Rb5 {[%clk 0:00:07]} 0-1


[Site "https://www.chess.com"]

[Event "Titled Tuesday Blitz March 08 Early 2022"]
[White "Mayaud, Raphael"]
[Black "Bilan, Danila"]
[WhiteFideId "627151"]
[BlackFideId "24161918"]
[WhiteElo "2191"]
[BlackElo "2164"]
[Result "1/2-1/2"]
[Round "09"]
[TimeControl "180+1"]
[Date "2022.03.09"]
[WhiteClock "0:00:27"]
[BlackClock "0:01:28"]

1. d4 {[%clk 0:02:53]}  d5 {[%clk 0:02:43]} 2. c4 {[%clk 0:02:52]}  e6 {[%clk 0:02:43]} 3. Nf3 {[%clk 0:02:52]}  c6 {[%clk 0:02:43]} 4. Nbd2 {[%clk 0:02:51]}  f5 {[%clk 0:02:43]} 5. e3 {[%clk 0:02:45]}  Nf6 {[%clk 0:02:42]} 6. Bd3 {[%clk 0:02:45]}  Bd6 {[%clk 0:02:41]} 7. O-O {[%clk 0:02:43]}  O-O {[%clk 0:02:40]} 8. Qc2 {[%clk 0:02:43]}  Ne4 {[%clk 0:02:40]} 9. Ne5 {[%clk 0:02:39]}  Nd7 {[%clk 0:02:37]} 10. f4 {[%clk 0:02:25]}  Ndf6 {[%clk 0:02:32]} 11. Nxe4 {[%clk 0:02:21]}  Nxe4 {[%clk 0:02:30]} 12. Bxe4 {[%clk 0:02:14]}  fxe4 {[%clk 0:02:31]} 13. Bd2 {[%clk 0:02:13]}  Bd7 {[%clk 0:02:30]} 14. c5 {[%clk 0:02:09]}  Bc7 {[%clk 0:02:27]} 15. Be1 {[%clk 0:01:49]}  Be8 {[%clk 0:02:24]} 16. Bg3 {[%clk 0:01:21]}  Bh5 {[%clk 0:02:23]} 17. b4 {[%clk 0:01:18]}  a6 {[%clk 0:02:19]} 18. a4 {[%clk 0:01:18]}  Bxe5 {[%clk 0:02:17]} 19. fxe5 {[%clk 0:01:17]}  Qg5 {[%clk 0:02:17]} 20. Qd2 {[%clk 0:00:54]}  Bg4 {[%clk 0:02:03]} 21. Rxf8+ {[%clk 0:00:53]}  Rxf8 {[%clk 0:02:03]} 22. Rf1 {[%clk 0:00:54]}  Rxf1+ {[%clk 0:01:58]} 23. Kxf1 {[%clk 0:00:54]}  h5 {[%clk 0:01:56]} 24. h4 {[%clk 0:00:43]}  Qg6 {[%clk 0:01:49]} 25. Qf2 {[%clk 0:00:42]}  Bd1 {[%clk 0:01:47]} 26. a5 {[%clk 0:00:40]}  Bb3 {[%clk 0:01:46]} 27. Qf4 {[%clk 0:00:33]}  Bc4+ {[%clk 0:01:43]} 28. Kf2 {[%clk 0:00:31]}  Kh7 {[%clk 0:01:43]} 29. Qg5 {[%clk 0:00:30]}  Qf7+ {[%clk 0:01:42]} 30. Qf4 {[%clk 0:00:30]}  Kg6 {[%clk 0:01:40]} 31. Qxf7+ {[%clk 0:00:29]}  Kxf7 {[%clk 0:01:41]} 32. Bf4 {[%clk 0:00:30]}  Kg6 {[%clk 0:01:41]} 33. Bg5 {[%clk 0:00:30]}  Kf5 {[%clk 0:01:42]} 34. Kg3 {[%clk 0:00:28]}  g6 {[%clk 0:01:42]} 35. Bd8 {[%clk 0:00:28]}  Bd3 {[%clk 0:01:34]} 36. Be7 {[%clk 0:00:27]}  Bf1 {[%clk 0:01:34]} 37. Bd8 {[%clk 0:00:27]}  Bd3 {[%clk 0:01:27]} 38. Be7 {[%clk 0:00:27]}  Bc4 {[%clk 0:01:28]} 39. Bd8 {[%clk 0:00:27]} 1/2-1/2


[Site "https://www.chess.com"]

[Event "Titled Tuesday Blitz March 08 Early 2022"]
[White "Mikhalsky, Vladimir"]
[Black "Cori T., Deysi"]
[WhiteFideId "14144352"]
[BlackFideId "3801934"]
[WhiteElo "2301"]
[BlackElo "2341"]
[Result "1-0"]
[Round "09"]
[TimeControl "180+1"]
[Date "2022.03.09"]
[WhiteClock "0:00:16"]
[BlackClock "0:00:10"]

1. c4 {[%clk 0:03:00]}  Nf6 {[%clk 0:02:59]} 2. Nc3 {[%clk 0:03:00]}  e6 {[%clk 0:03:00]} 3. e4 {[%clk 0:02:59]}  d5 {[%clk 0:03:00]} 4. e5 {[%clk 0:02:58]}  Nfd7 {[%clk 0:03:00]} 5. cxd5 {[%clk 0:02:54]}  exd5 {[%clk 0:02:58]} 6. d4 {[%clk 0:02:53]}  c6 {[%clk 0:02:56]} 7. Bd3 {[%clk 0:02:45]}  Be7 {[%clk 0:02:52]} 8. h4 {[%clk 0:02:34]}  b5 {[%clk 0:02:50]} 9. Qh5 {[%clk 0:02:24]}  Nb6 {[%clk 0:02:46]} 10. Nf3 {[%clk 0:02:18]}  g6 {[%clk 0:02:44]} 11. Qh6 {[%clk 0:02:18]}  Bf8 {[%clk 0:02:39]} 12. Qf4 {[%clk 0:02:17]}  h6 {[%clk 0:02:38]} 13. b3 {[%clk 0:02:01]}  Be6 {[%clk 0:02:35]} 14. Qg3 {[%clk 0:01:55]}  Be7 {[%clk 0:02:25]} 15. Ne2 {[%clk 0:01:53]}  Kd7 {[%clk 0:02:16]} 16. Nf4 {[%clk 0:01:52]}  Na6 {[%clk 0:02:12]} 17. Nxe6 {[%clk 0:01:16]}  fxe6 {[%clk 0:02:12]} 18. Bxg6 {[%clk 0:01:16]}  Bb4+ {[%clk 0:01:54]} 19. Bd2 {[%clk 0:01:11]}  Qe7 {[%clk 0:01:54]} 20. Qf4 {[%clk 0:01:05]}  Raf8 {[%clk 0:01:48]} 21. Qe3 {[%clk 0:01:03]}  h5 {[%clk 0:01:04]} 22. Ng5 {[%clk 0:00:59]}  Rfg8 {[%clk 0:00:58]} 23. Bd3 {[%clk 0:00:43]}  Bxd2+ {[%clk 0:00:54]} 24. Qxd2 {[%clk 0:00:42]}  Nb4 {[%clk 0:00:51]} 25. Rc1 {[%clk 0:00:39]}  a6 {[%clk 0:00:50]} 26. O-O {[%clk 0:00:34]}  Nxd3 {[%clk 0:00:28]} 27. Qxd3 {[%clk 0:00:33]}  Kc7 {[%clk 0:00:27]} 28. Qc3 {[%clk 0:00:32]}  Qd7 {[%clk 0:00:26]} 29. Qc5 {[%clk 0:00:31]}  Rg6 {[%clk 0:00:25]} 30. a4 {[%clk 0:00:30]}  Kb7 {[%clk 0:00:24]} 31. Ra1 {[%clk 0:00:28]}  Rc8 {[%clk 0:00:21]} 32. Qb4 {[%clk 0:00:26]}  Qc7 {[%clk 0:00:09]} 33. Rfc1 {[%clk 0:00:26]}  Nd7 {[%clk 0:00:09]} 34. axb5 {[%clk 0:00:23]}  axb5 {[%clk 0:00:10]} 35. Qa3 {[%clk 0:00:21]}  Qb6 {[%clk 0:00:10]} 36. Qd6 {[%clk 0:00:20]}  Nb8 {[%clk 0:00:10]} 37. Nxe6 {[%clk 0:00:17]}  Rf6 {[%clk 0:00:10]} 38. Nc5+ {[%clk 0:00:16]} 1-0


[Site "https://www.chess.com"]